[Event "Mukachevo IM June 2019"]
[Site "Mukachevo"]
[Date "2019.06.25"]
[Round "2.4"]
[White "Terletsky, Oleg"]
[Black "Vachylia, Andrii"]
[Result "1-0"]
[ECO "B90"]
[WhiteElo "2318"]
[BlackElo "2263"]
[Annotator "ChessBase"]
[PlyCount "71"]
[EventDate "2019.06.24"]
[EventType "tourn"]
[EventCountry "UKR"]
[SourceTitle "playchess.com"]
[Source "ChessBase"]
[SourceQuality "1"]
[TimeControl "40/5400+30:900+30"]

1. e4 {[%emt 0:01:12]} c5 {[%emt 0:00:00]} 2. Nf3 {[%emt 0:00:05]} d6 {[%emt 0:00:00]} 3. d4 {[%emt 0:00:09]} cxd4 {[%emt 0:00:00]} 4. Nxd4 {[%emt 0:00:06]} Nf6 {[%emt 0:00:02]} 5. Nc3 {[%emt 0:00:07]} a6 {[%emt 0:00:06]} 6. Be3 {[%emt 0:00:05]} e5 {[%emt 0:00:11]} 7. Nb3 {[%emt 0:00:05]} Be6 {[%emt 0:00:28]} 8. f3 {[%emt 0:00:08]} Be7 {[%emt 0:00:15]} 9. Qd2 {[%emt 0:00:08]} O-O {[%emt 0:00:57]} 10. O-O-O {[%emt 0:00:17]} Nbd7 {[%emt 0:00:18]} 11. g4 {[%emt 0:00:09]} b5 {[%emt 0:00:06]} 12. g5 {[%emt 0:00:09]} b4 {[%emt 0:00:17]} 13. Ne2 {[%emt 0:00:23]} Ne8 {[%emt 0:00:17]} 14. f4 {[%emt 0:00:07]} a5 {[%emt 0:00:15]} 15. f5 {[%emt 0:02:43]} Bxb3 {[%emt 0:00:19]} 16. cxb3 {[%emt 0:02:12]} a4 {[%emt 0:00:10]} 17. bxa4 {[%emt 0:02:04]} Rxa4 {[%emt 0:00:06]} 18. Kb1 {[%emt 0:00:41]} Rxa2 {[%emt 0:00:10]} 19. Nc1 {[%emt 0:03:25]} Ra8 {[%emt 0:02:55]} 20. Nb3 {[%emt 0:06:53]} Nc7 {[%emt 0:24:02]} 21. Bc4 {[%emt 0:03:12]} Kh8 {[%emt 0:01:21]} 22. h4 {[%emt 0:03:18]} Qc8 {[%emt 0:07:23]} 23. h5 {[%emt 0:08:46]} d5 {[%emt 0:00:36]} 24. exd5 {[%emt 0:02:18]} Na6 {[%emt 0:01:43]} 25. Qc2 {[%emt 0:06:32]} Bc5 {[%emt 0:01:48]} 26. Bc1 {[%emt 0:02:24]} Nb6 {[%emt 0:01:19]} 27. Bb5 {[%emt 0:00:18]} Bd6 {[%emt 0:01:56]} 28. Bc6 {[%emt 0:05:26]} Rb8 {[%emt 0:30:50]} 29. g6 {[%emt 0:03:17]} Nc5 {[%emt 0:02:44]} 30. h6 {[%emt 0:07:17]} Nxb3 {[%emt 0:14:20]} 31. hxg7+ {[%emt 0:01:21]} Kxg7 {[%emt 0:00:02]} 32. f6+ {[%emt 0:00:54]} Kxf6 {[%emt 0:00:09]} 33. Rdf1+ {[%emt 0:00:12]} Ke7 {[%emt 0:00:12]} 34. Bg5+ {[%emt 0:00:23]} f6 {[%emt 0:00:05]} 35. Rxh7+ {[%emt 0:00:05]} Kd8 {[%emt 0:00:02]} 36. Rxf6 {[%emt 0:00:23]} 1-0

[Event "Mukachevo IM June 2019"]
[Site "Mukachevo"]
[Date "2019.06.25"]
[Round "3.1"]
[White "Terbe, Zsuzsanna"]
[Black "Sakun, Volodymyr"]
[Result "0-1"]
[ECO "A45"]
[WhiteElo "2160"]
[BlackElo "2349"]
[Annotator "NA"]
[PlyCount "72"]
[EventDate "2019.06.24"]
[EventType "tourn"]
[EventCountry "UKR"]
[SourceTitle "playchess.com"]
[Source "ChessBase"]
[SourceQuality "1"]
[TimeControl "40/5400+30:900+30"]

1. d4 {[%emt 0:00:00]} Nf6 {[%emt 0:00:00]} 2. Bf4 {[%emt 0:00:00]} g6 {[%emt 0:00:00]} 3. e3 {[%emt 0:00:00]} Bg7 {[%emt 0:00:00]} 4. Nf3 {[%emt 0:00:00]} O-O {[%emt 0:00:00]} 5. Be2 {[%emt 0:00:00]} d6 {[%emt 0:00:00]} 6. h3 {[%emt 0:00:02]} Nc6 {[%emt 0:00:00]} 7. O-O {[%emt 0:00:17]} Nd7 {[%emt 0:00:01]} 8. Bh2 {[%emt 0:00:28]} e5 {[%emt 0:00:11]} 9. c3 {[%emt 0:01:31]} Qe7 {[%emt 0:02:04]} 10. Re1 {[%emt 0:02:58]} f5 {[%emt 0:02:16]} 11. b4 {[%emt 0:02:43]} g5 {[%emt 0:05:42]} 12. Na3 {[%emt 0:05:31]} g4 {[%emt 0:06:06]} 13. hxg4 {[%emt 0:00:40]} fxg4 {[%emt 0:00:10]} 14. Nd2 {[%emt 0:00:31]} h5 {[%emt 0:00:48]} 15. Qb3+ {[%emt 0:07:16]} Kh8 {[%emt 0:01:02]} 16. Nb5 {[%emt 0:01:12]} Nf6 {[%emt 0:04:21]} 17. dxe5 {[%emt 0:00:46]} Nxe5 {[%emt 0:03:11]} 18. Rad1 {[%emt 0:02:43]} Bf5 {[%emt 0:02:20]} 19. Nd4 {[%emt 0:01:27]} Bg6 {[%emt 0:04:21]} 20. c4 {[%emt 0:04:02]} Ne4 {[%emt 0:02:46]} 21. Nxe4 {[%emt 0:00:50]} Bxe4 {[%emt 0:00:14]} 22. c5 {[%emt 0:05:16]} Rf6 {[%emt 0:10:22]} 23. cxd6 {[%emt 0:02:54]} cxd6 {[%emt 0:04:15]} 24. Bf4 {[%emt 0:04:26]} Rg6 {[%emt 0:14:16]} 25. Bf1 {[%emt 0:02:13]} Nf3+ {[%emt 0:10:12]} 26. Nxf3 {[%emt 0:01:32]} gxf3 {[%emt 0:01:31]} 27. g3 {[%emt 0:02:17]} h4 {[%emt 0:02:30]} 28. Rd2 {[%emt 0:02:47]} Be5 {[%emt 0:04:34]} 29. Qc4 {[%emt 0:05:10]} d5 {[%emt 0:04:29]} 30. Bxe5+ {[%emt 0:01:46]} Qxe5 {[%emt 0:00:15]} 31. Qd4 {[%emt 0:00:09]} Qxd4 {[%emt 0:05:08]} 32. Rxd4 {[%emt 0:00:06]} hxg3 {[%emt 0:02:44]} 33. fxg3 {[%emt 0:00:08]} Rh6 {[%emt 0:04:18]} 34. Rc1 {[%emt 0:06:22]} f2+ {[%emt 0:01:17]} 35. Kxf2 {[%emt 0:00:06]} Rf8+ {[%emt 0:00:12]} 36. Ke1 {[%emt 0:00:15]} Rxf1+ {[%emt 0:00:47]} 0-1

[Event "Mukachevo IM June 2019"]
[Site "Mukachevo"]
[Date "2019.06.25"]
[Round "3.2"]
[White "Vachylia, Andrii"]
[Black "Larkin, Vladyslav"]
[Result "1/2-1/2"]
[ECO "D43"]
[WhiteElo "2263"]
[BlackElo "2398"]
[Annotator "NA"]
[PlyCount "109"]
[EventDate "2019.06.24"]
[EventType "tourn"]
[EventCountry "UKR"]
[SourceTitle "playchess.com"]
[Source "ChessBase"]
[SourceQuality "1"]
[TimeControl "40/5400+30:900+30"]

1. d4 {[%emt 0:00:00]} d5 {[%emt 0:00:00]} 2. c4 {[%emt 0:00:00]} c6 {[%emt 0:00:00]} 3. Nf3 {[%emt 0:00:00]} Nf6 {[%emt 0:00:00]} 4. Nc3 {[%emt 0:00:00]} e6 {[%emt 0:02:07]} 5. Bg5 {[%emt 0:00:00]} Be7 {[%emt 0:00:08]} 6. e3 {[%emt 0:00:16]} Nbd7 {[%emt 0:00:07]} 7. Qc2 {[%emt 0:00:15]} O-O {[%emt 0:00:36]} 8. cxd5 {[%emt 0:00:08]} cxd5 {[%emt 0:08:10]} 9. Bd3 {[%emt 0:00:23]} a6 {[%emt 0:00:06]} 10. O-O {[%emt 0:00:13]} h6 {[%emt 0:00:13]} 11. Bh4 {[%emt 0:00:22]} b5 {[%emt 0:00:42]} 12. a4 {[%emt 0:05:37]} b4 {[%emt 0:00:09]} 13. Ne2 {[%emt 0:00:06]} Bb7 {[%emt 0:00:44]} 14. Nc1 {[%emt 0:00:07]} g5 {[%emt 0:31:39]} 15. Bg3 {[%emt 0:00:06]} Ne4 {[%emt 0:00:03]} 16. Nb3 {[%emt 0:04:36]} Nxg3 {[%emt 0:05:55]} 17. hxg3 {[%emt 0:00:28]} Bd6 {[%emt 0:00:22]} 18. Qe2 {[%emt 0:11:20]} f5 {[%emt 0:09:46]} 19. g4 {[%emt 0:05:47]} fxg4 {[%emt 0:09:25]} 20. Nfd2 {[%emt 0:00:10]} Nf6 {[%emt 0:01:42]} 21. e4 {[%emt 0:00:10]} e5 {[%emt 0:02:24]} 22. dxe5 {[%emt 0:00:48]} Bxe5 {[%emt 0:00:06]} 23. Nc5 {[%emt 0:00:07]} Qb6 {[%emt 0:08:12]} 24. Nxb7 {[%emt 0:00:17]} Qxb7 {[%emt 0:02:54]} 25. exd5 {[%emt 0:00:26]} Bxb2 {[%emt 0:03:46]} 26. Rab1 {[%emt 0:06:03]} Bd4 {[%emt 0:00:41]} 27. Ne4 {[%emt 0:00:19]} Qb6 {[%emt 0:05:22]} 28. a5 {[%emt 0:00:34]} Qa7 {[%emt 0:05:03]} 29. Rxb4 {[%emt 0:01:04]} Kh8 {[%emt 0:01:34]} 30. Rfb1 {[%emt 0:13:11]} Nxe4 {[%emt 0:00:24]} 31. Qxe4 {[%emt 0:00:04]} Bxf2+ {[%emt 0:00:04]} 32. Kh1 {[%emt 0:00:04]} Rae8 {[%emt 0:01:57]} 33. Qxg4 {[%emt 0:01:37]} Qe3 {[%emt 0:01:34]} 34. Bg6 {[%emt 0:03:39]} Be1 {[%emt 0:00:23]} 35. Qd4+ {[%emt 0:01:04]} Re5 {[%emt 0:00:23]} 36. Qxe3 {[%emt 0:01:11]} Rxe3 {[%emt 0:00:01]} 37. Re4 {[%emt 0:03:58]} Rxe4 {[%emt 0:00:59]} 38. Bxe4 {[%emt 0:00:03]} Bxa5 {[%emt 0:00:02]} 39. d6 {[%emt 0:00:44]} Re8 {[%emt 0:01:10]} 40. Bb7 {[%emt 0:00:00]} Rd8 {[%emt 0:00:00]} 41. Rd1 {[%emt 0:00:37]} Bb4 {[%emt 0:00:34]} 42. d7 {[%emt 0:00:08]} a5 {[%emt 0:00:06]} 43. g4 {[%emt 0:00:19]} Kg7 {[%emt 0:00:08]} 44. Bc6 {[%emt 0:00:17]} Kf6 {[%emt 0:01:40]} 45. Kg2 {[%emt 0:00:12]} Ke7 {[%emt 0:00:04]} 46. Rd3 {[%emt 0:01:13]} Bc5 {[%emt 0:02:17]} 47. Rd5 {[%emt 0:00:28]} Bb6 {[%emt 0:01:06]} 48. Ba4 {[%emt 0:00:28]} Ke6 {[%emt 0:01:12]} 49. Rb5 {[%emt 0:02:14]} Bc7 {[%emt 0:00:05]} 50. Rc5 {[%emt 0:00:10]} Kd6 {[%emt 0:01:36]} 51. Rf5 {[%emt 0:02:39]} Ke7 {[%emt 0:00:42]} 52. Rf3 {[%emt 0:00:31]} Rb8 {[%emt 0:01:36]} 53. Re3+ {[%emt 0:01:17]} Kd6 {[%emt 0:00:05]} 54. Rd3+ {[%emt 0:01:38]} Ke7 {[%emt 0:00:16]} 55. Re3+ {[%emt 0:00:10]} 1/2-1/2

[Event "Mukachevo IM June 2019"]
[Site "Mukachevo"]
[Date "2019.06.25"]
[Round "3.3"]
[White "Tiba, Vladyslav"]
[Black "Terletsky, Oleg"]
[Result "0-1"]
[ECO "C92"]
[WhiteElo "2375"]
[BlackElo "2318"]
[Annotator "NA"]
[PlyCount "84"]
[EventDate "2019.06.24"]
[EventType "tourn"]
[EventCountry "UKR"]
[SourceTitle "playchess.com"]
[Source "ChessBase"]
[SourceQuality "1"]
[TimeControl "40/5400+30:900+30"]

1. e4 {[%emt 0:00:00]} e5 {[%emt 0:00:00]} 2. Nf3 {[%emt 0:00:00]} Nc6 {[%emt 0:00:00]} 3. Bb5 {[%emt 0:00:57]} a6 {[%emt 0:00:00]} 4. Ba4 {[%emt 0:00:05]} Nf6 {[%emt 0:00:00]} 5. O-O {[%emt 0:00:07]} Be7 {[%emt 0:00:00]} 6. Re1 {[%emt 0:00:05]} b5 {[%emt 0:00:00]} 7. Bb3 {[%emt 0:00:04]} d6 {[%emt 0:01:33]} 8. c3 {[%emt 0:00:10]} O-O {[%emt 0:00:06]} 9. h3 {[%emt 0:00:03]} Bb7 {[%emt 0:00:04]} 10. d4 {[%emt 0:00:12]} Re8 {[%emt 0:00:08]} 11. Nbd2 {[%emt 0:00:14]} Bf8 {[%emt 0:00:10]} 12. d5 {[%emt 0:01:18]} Ne7 {[%emt 0:00:07]} 13. Nf1 {[%emt 0:02:44]} Ng6 {[%emt 0:00:07]} 14. Ng3 {[%emt 0:03:47]} c6 {[%emt 0:02:18]} 15. dxc6 {[%emt 0:07:32]} Bxc6 {[%emt 0:00:03]} 16. Bg5 {[%emt 0:00:10]} h6 {[%emt 0:00:29]} 17. Bxf6 {[%emt 0:04:41]} Qxf6 {[%emt 0:00:03]} 18. Nh5 {[%emt 0:09:24]} Qe7 {[%emt 0:01:55]} 19. Nh2 {[%emt 0:02:17]} Rad8 {[%emt 0:04:22]} 20. Ng4 {[%emt 0:13:47]} Nf4 {[%emt 0:12:06]} 21. Nxf4 {[%emt 0:11:04]} exf4 {[%emt 0:00:03]} 22. Qd2 {[%emt 0:00:25]} Qg5 {[%emt 0:02:24]} 23. Qd3 {[%emt 0:05:23]} Qg6 {[%emt 0:07:36]} 24. Bd5 {[%emt 0:03:49]} Bxd5 {[%emt 0:02:13]} 25. Qxd5 {[%emt 0:00:07]} h5 {[%emt 0:00:05]} 26. Nh2 {[%emt 0:00:29]} Re5 {[%emt 0:00:07]} 27. Qc6 {[%emt 0:09:46]} Rc5 {[%emt 0:08:21]} 28. Qb6 {[%emt 0:04:00]} Rg5 {[%emt 0:00:35]} 29. Kh1 {[%emt 0:10:23]} Rxg2 {[%emt 0:02:21]} 30. Nf3 {[%emt 0:00:31]} Be7 {[%emt 0:01:12]} 31. Re2 {[%emt 0:01:35]} Rg5 {[%emt 0:25:15]} 32. Nxg5 {[%emt 0:08:06]} Qxg5 {[%emt 0:01:36]} 33. Rg1 {[%emt 0:01:23]} Qh4 {[%emt 0:00:36]} 34. Kg2 {[%emt 0:00:55]} Bg5 {[%emt 0:05:07]} 35. Qc6 {[%emt 0:01:19]} f3+ {[%emt 0:05:07]} 36. Kxf3 {[%emt 0:00:03]} Qxh3+ {[%emt 0:00:06]} 37. Rg3 {[%emt 0:00:04]} Qh1+ {[%emt 0:00:06]} 38. Rg2 {[%emt 0:00:09]} h4 {[%emt 0:00:05]} 39. Qd5 {[%emt 0:00:49]} Qh3+ {[%emt 0:00:30]} 40. Rg3 {[%emt 0:00:00]} hxg3 {[%emt 0:00:00]} 41. Qxg5 {[%emt 0:00:38]} g2+ {[%emt 0:00:41]} 42. Kf4 {[%emt 0:01:01]} f6 {[%emt 0:01:18]} 0-1

[Event "Mukachevo IM June 2019"]
[Site "Mukachevo"]
[Date "2019.06.25"]
[Round "3.4"]
[White "Oros, Robert"]
[Black "Karelina, Polina"]
[Result "1-0"]
[ECO "B07"]
[WhiteElo "2321"]
[BlackElo "1718"]
[Annotator "NA"]
[PlyCount "91"]
[EventDate "2019.06.24"]
[EventType "tourn"]
[EventCountry "UKR"]
[SourceTitle "playchess.com"]
[Source "ChessBase"]
[SourceQuality "1"]
[TimeControl "40/5400+30:900+30"]

1. e4 {[%emt 0:00:00]} d6 {[%emt 0:00:00]} 2. d4 {[%emt 0:00:04]} Nf6 {[%emt 0:00:39]} 3. Nc3 {[%emt 0:00:07]} c6 {[%emt 0:00:39]} 4. Nf3 {[%emt 0:03:58]} Bg4 {[%emt 0:00:16]} 5. h3 {[%emt 0:03:20]} Bh5 {[%emt 0:00:17]} 6. Bd3 {[%emt 0:01:16]} e6 {[%emt 0:02:31]} 7. Qe2 {[%emt 0:09:20]} Be7 {[%emt 0:02:59]} 8. Bf4 {[%emt 0:09:08]} d5 {[%emt 0:02:02]} 9. g4 {[%emt 0:08:42]} Bg6 {[%emt 0:00:56]} 10. e5 {[%emt 0:03:42]} Nfd7 {[%emt 0:00:48]} 11. Bxg6 {[%emt 0:03:53]} hxg6 {[%emt 0:02:23]} 12. O-O-O {[%emt 0:04:35]} c5 {[%emt 0:01:35]} 13. dxc5 {[%emt 0:00:09]} Bxc5 {[%emt 0:02:12]} 14. Kb1 {[%emt 0:04:18]} Nc6 {[%emt 0:04:07]} 15. Nb5 {[%emt 0:11:43]} a6 {[%emt 0:02:15]} 16. Nd6+ {[%emt 0:00:17]} Bxd6 {[%emt 0:00:19]} 17. exd6 {[%emt 0:00:04]} Nf6 {[%emt 0:04:57]} 18. c4 {[%emt 0:01:51]} Qa5 {[%emt 0:04:17]} 19. g5 {[%emt 0:09:14]} Nh5 {[%emt 0:05:37]} 20. d7+ {[%emt 0:16:22]} Kd8 {[%emt 0:16:29]} 21. Bh2 {[%emt 0:00:41]} dxc4 {[%emt 0:03:00]} 22. Qxc4 {[%emt 0:03:03]} Qf5+ {[%emt 0:00:13]} 23. Qd3 {[%emt 0:00:04]} Ke7 {[%emt 0:01:46]} 24. Ka1 {[%emt 0:01:04]} Qxd3 {[%emt 0:01:43]} 25. Rxd3 {[%emt 0:00:05]} f6 {[%emt 0:03:20]} 26. Bc7 {[%emt 0:02:24]} e5 {[%emt 0:03:39]} 27. Rhd1 {[%emt 0:00:52]} Nf4 {[%emt 0:00:35]} 28. Rb3 {[%emt 0:00:07]} b5 {[%emt 0:01:42]} 29. Rc3 {[%emt 0:00:44]} Nd8 {[%emt 0:03:35]} 30. Bd6+ {[%emt 0:00:41]} Ke6 {[%emt 0:00:43]} 31. Ba3 {[%emt 0:02:24]} Nb7 {[%emt 0:03:02]} 32. Rc6+ {[%emt 0:00:21]} Kf7 {[%emt 0:06:06]} 33. Rb6 {[%emt 0:00:55]} Nd8 {[%emt 0:01:39]} 34. h4 {[%emt 0:00:23]} Nfe6 {[%emt 0:01:40]} 35. b3 {[%emt 0:00:42]} e4 {[%emt 0:06:12]} 36. Nd4 {[%emt 0:00:04]} Nxd4 {[%emt 0:00:27]} 37. Rxd4 {[%emt 0:00:08]} Rxh4 {[%emt 0:00:21]} 38. gxf6 {[%emt 0:00:21]} gxf6 {[%emt 0:00:29]} 39. Rdd6 {[%emt 0:00:10]} Rf4 {[%emt 0:01:56]} 40. Bc5 {[%emt 0:00:00]} Rf3 {[%emt 0:00:00]} 41. Bd4 {[%emt 0:01:56]} g5 {[%emt 0:14:41]} 42. Bxf6 {[%emt 0:02:16]} g4 {[%emt 0:00:56]} 43. Bh4 {[%emt 0:02:25]} Rh3 {[%emt 0:02:05]} 44. Rh6 {[%emt 0:01:40]} Kg7 {[%emt 0:02:39]} 45. Rhg6+ {[%emt 0:01:25]} Kf7 {[%emt 0:00:57]} 46. Rbf6+ {[%emt 0:00:24]} 1-0

[Event "Mukachevo IM June 2019"]
[Site "Mukachevo"]
[Date "2019.06.27"]
[Round "6.1"]
[White "Sakun, Volodymyr"]
[Black "Karelina, Polina"]
[Result "1-0"]
[ECO "A05"]
[WhiteElo "2349"]
[BlackElo "1718"]
[Annotator "NA"]
[PlyCount "75"]
[EventDate "2019.06.24"]
[EventType "tourn"]
[EventCountry "UKR"]
[SourceTitle "playchess.com"]
[Source "ChessBase"]
[SourceQuality "1"]
[TimeControl "40/5400+30:900+30"]

1. Nf3 {[%emt 0:00:00]} Nf6 {[%emt 0:00:00]} 2. c4 {[%emt 0:00:00]} g6 {[%emt 0:00:06]} 3. Nc3 {[%emt 0:00:00]} Bg7 {[%emt 0:00:26]} 4. d4 {[%emt 0:00:00]} O-O {[%emt 0:00:31]} 5. g3 {[%emt 0:00:00]} d6 {[%emt 0:02:27]} 6. Bg2 {[%emt 0:00:00]} Bf5 {[%emt 0:00:24]} 7. Nh4 {[%emt 0:11:45]} Bc8 {[%emt 0:01:42]} 8. O-O {[%emt 0:00:21]} e5 {[%emt 0:00:26]} 9. d5 {[%emt 0:02:52]} Bd7 {[%emt 0:05:33]} 10. e4 {[%emt 0:00:33]} Nh5 {[%emt 0:00:48]} 11. Nf5 {[%emt 0:03:56]} Nf4 {[%emt 0:08:56]} 12. gxf4 {[%emt 0:02:24]} gxf5 {[%emt 0:00:10]} 13. Qh5 {[%emt 0:00:51]} Qf6 {[%emt 0:01:57]} 14. fxe5 {[%emt 0:06:35]} dxe5 {[%emt 0:00:43]} 15. f4 {[%emt 0:10:58]} Qg6 {[%emt 0:02:01]} 16. Qxg6 {[%emt 0:04:14]} fxg6 {[%emt 0:00:24]} 17. fxe5 {[%emt 0:01:37]} Bxe5 {[%emt 0:00:15]} 18. Bf4 {[%emt 0:01:50]} Bd4+ {[%emt 0:06:26]} 19. Kh1 {[%emt 0:00:09]} fxe4 {[%emt 0:02:17]} 20. Nxe4 {[%emt 0:10:38]} Na6 {[%emt 0:02:18]} 21. Rad1 {[%emt 0:02:11]} Bxb2 {[%emt 0:01:59]} 22. d6 {[%emt 0:02:37]} cxd6 {[%emt 0:01:56]} 23. Nxd6 {[%emt 0:09:10]} Bc6 {[%emt 0:05:57]} 24. Nxb7 {[%emt 0:01:09]} Bxg2+ {[%emt 0:00:19]} 25. Kxg2 {[%emt 0:00:05]} Rac8 {[%emt 0:01:30]} 26. Nd6 {[%emt 0:05:15]} Rcd8 {[%emt 0:02:33]} 27. Bg3 {[%emt 0:01:43]} Ba3 {[%emt 0:07:16]} 28. Nb5 {[%emt 0:03:28]} Bc5 {[%emt 0:00:08]} 29. Rxf8+ {[%emt 0:00:15]} Rxf8 {[%emt 0:00:15]} 30. Rd7 {[%emt 0:01:26]} Nb4 {[%emt 0:01:20]} 31. Nxa7 {[%emt 0:05:33]} Nxa2 {[%emt 0:02:18]} 32. Nc6 {[%emt 0:02:44]} Rc8 {[%emt 0:04:10]} 33. Nd8 {[%emt 0:06:07]} Bf8 {[%emt 0:03:47]} 34. Ne6 {[%emt 0:00:36]} Rxc4 {[%emt 0:03:55]} 35. Rd8 {[%emt 0:00:24]} Kf7 {[%emt 0:00:51]} 36. Nxf8 {[%emt 0:00:20]} Ke7 {[%emt 0:00:12]} 37. Ra8 {[%emt 0:00:26]} Rc2+ {[%emt 0:00:40]} 38. Kf3 {[%emt 0:01:21]} 1-0

[Event "Mukachevo IM June 2019"]
[Site "Mukachevo"]
[Date "2019.06.27"]
[Round "6.2"]
[White "Vachylia, Andrii"]
[Black "Tiba, Vladyslav"]
[Result "1/2-1/2"]
[ECO "B40"]
[WhiteElo "2263"]
[BlackElo "2375"]
[Annotator "NA"]
[PlyCount "66"]
[EventDate "2019.06.24"]
[EventType "tourn"]
[EventCountry "UKR"]
[SourceTitle "playchess.com"]
[Source "ChessBase"]
[SourceQuality "1"]
[TimeControl "40/5400+30:900+30"]

1. e4 {[%emt 0:00:00]} c5 {[%emt 0:00:00]} 2. Nf3 {[%emt 0:00:00]} e6 {[%emt 0:00:00]} 3. c3 {[%emt 0:00:33]} d5 {[%emt 0:00:11]} 4. e5 {[%emt 0:00:21]} d4 {[%emt 0:00:34]} 5. Bb5+ {[%emt 0:00:17]} Bd7 {[%emt 0:01:38]} 6. Qa4 {[%emt 0:00:17]} Nc6 {[%emt 0:01:57]} 7. cxd4 {[%emt 0:00:31]} cxd4 {[%emt 0:01:55]} 8. Na3 {[%emt 0:04:23]} a6 {[%emt 0:03:52]} 9. Bxc6 {[%emt 0:00:12]} Bxc6 {[%emt 0:00:05]} 10. Qxd4 {[%emt 0:00:06]} Bxf3 {[%emt 0:01:29]} 11. Qxd8+ {[%emt 0:00:06]} Rxd8 {[%emt 0:00:07]} 12. gxf3 {[%emt 0:00:02]} Bxa3 {[%emt 0:18:50]} 13. bxa3 {[%emt 0:00:06]} Ne7 {[%emt 0:00:06]} 14. Rb1 {[%emt 0:00:10]} b5 {[%emt 0:02:35]} 15. a4 {[%emt 0:00:07]} Rd5 {[%emt 0:00:24]} 16. d4 {[%emt 0:00:55]} Nc6 {[%emt 0:04:17]} 17. Be3 {[%emt 0:00:12]} O-O {[%emt 0:02:00]} 18. axb5 {[%emt 0:00:25]} axb5 {[%emt 0:00:14]} 19. O-O {[%emt 0:00:06]} Nxd4 {[%emt 0:03:31]} 20. Bxd4 {[%emt 0:00:07]} Rxd4 {[%emt 0:00:06]} 21. Rxb5 {[%emt 0:00:03]} Ra4 {[%emt 0:00:09]} 22. Rb2 {[%emt 0:01:46]} g5 {[%emt 0:00:32]} 23. Rd1 {[%emt 0:00:29]} Rfa8 {[%emt 0:01:02]} 24. Rd7 {[%emt 0:03:24]} Rxa2 {[%emt 0:00:58]} 25. Rbb7 {[%emt 0:00:03]} Rf8 {[%emt 0:00:12]} 26. Rd4 {[%emt 0:00:14]} Ra5 {[%emt 0:01:41]} 27. Rg4 {[%emt 0:00:14]} Rxe5 {[%emt 0:01:04]} 28. f4 {[%emt 0:00:05]} Rf5 {[%emt 0:00:30]} 29. Rxg5+ {[%emt 0:00:07]} Rxg5+ {[%emt 0:00:15]} 30. fxg5 {[%emt 0:00:04]} Rd8 {[%emt 0:01:27]} 31. Kg2 {[%emt 0:00:06]} Kg7 {[%emt 0:00:36]} 32. Kg3 {[%emt 0:00:07]} Kg6 {[%emt 0:01:34]} 33. h4 {[%emt 0:00:04]} Rd1 {[%emt 0:01:08]} 1/2-1/2

[Event "Mukachevo IM June 2019"]
[Site "Mukachevo"]
[Date "2019.06.27"]
[Round "6.3"]
[White "Terbe, Zsuzsanna"]
[Black "Oros, Robert"]
[Result "0-1"]
[ECO "A46"]
[WhiteElo "2160"]
[BlackElo "2321"]
[Annotator "NA"]
[PlyCount "96"]
[EventDate "2019.06.24"]
[EventType "tourn"]
[EventCountry "UKR"]
[SourceTitle "playchess.com"]
[Source "ChessBase"]
[SourceQuality "1"]
[TimeControl "40/5400+30:900+30"]

1. d4 {[%emt 0:00:00]} Nf6 {[%emt 0:00:00]} 2. Nf3 {[%emt 0:00:00]} d6 {[%emt 0:00:08]} 3. g3 {[%emt 0:00:03]} Nbd7 {[%emt 0:00:55]} 4. Bg2 {[%emt 0:00:16]} e5 {[%emt 0:00:49]} 5. c4 {[%emt 0:01:07]} c6 {[%emt 0:00:50]} 6. O-O {[%emt 0:00:29]} Be7 {[%emt 0:00:14]} 7. Nc3 {[%emt 0:00:26]} O-O {[%emt 0:00:15]} 8. Qc2 {[%emt 0:02:44]} Re8 {[%emt 0:01:37]} 9. e3 {[%emt 0:01:12]} Qc7 {[%emt 0:02:57]} 10. b3 {[%emt 0:01:14]} Nf8 {[%emt 0:01:10]} 11. Bb2 {[%emt 0:01:01]} Bg4 {[%emt 0:01:06]} 12. h3 {[%emt 0:04:18]} Bh5 {[%emt 0:03:40]} 13. Rac1 {[%emt 0:04:22]} Bg6 {[%emt 0:01:10]} 14. Qd2 {[%emt 0:03:39]} N6d7 {[%emt 0:01:00]} 15. e4 {[%emt 0:05:10]} Ne6 {[%emt 0:04:34]} 16. d5 {[%emt 0:01:04]} Nec5 {[%emt 0:01:41]} 17. Rfe1 {[%emt 0:00:26]} a5 {[%emt 0:02:33]} 18. Nh2 {[%emt 0:03:21]} Qb6 {[%emt 0:06:10]} 19. Ba3 {[%emt 0:02:18]} Nb8 {[%emt 0:10:13]} 20. Kh1 {[%emt 0:03:07]} Nba6 {[%emt 0:02:02]} 21. Rb1 {[%emt 0:00:58]} Nb4 {[%emt 0:00:50]} 22. Rf1 {[%emt 0:06:37]} Qd8 {[%emt 0:10:28]} 23. Bb2 {[%emt 0:04:46]} cxd5 {[%emt 0:08:46]} 24. cxd5 {[%emt 0:02:13]} Rc8 {[%emt 0:04:31]} 25. a3 {[%emt 0:02:42]} Nba6 {[%emt 0:02:44]} 26. Ba1 {[%emt 0:00:15]} f5 {[%emt 0:03:40]} 27. f3 {[%emt 0:01:34]} Bg5 28. Qe2 {[%emt 0:02:10]} f4 {[%emt 0:04:29]} 29. g4 {[%emt 0:02:50]} Bh4 {[%emt 0:03:07]} 30. b4 {[%emt 0:01:50]} axb4 {[%emt 0:00:15]} 31. axb4 {[%emt 0:00:05]} Nd7 {[%emt 0:00:08]} 32. Qb5 {[%emt 0:02:24]} Nb6 {[%emt 0:01:32]} 33. Rfc1 {[%emt 0:02:04]} Re7 {[%emt 0:02:15]} 34. Bf1 {[%emt 0:02:02]} Bf2 {[%emt 0:01:56]} 35. Nd1 {[%emt 0:02:13]} Rxc1 {[%emt 0:05:32]} 36. Rxc1 {[%emt 0:00:11]} Be1 {[%emt 0:00:26]} 37. Bc3 {[%emt 0:01:46]} Bxc3 {[%emt 0:05:29]} 38. Rxc3 {[%emt 0:00:46]} Nc8 {[%emt 0:05:05]} 39. Qa5 {[%emt 0:02:45]} Qf8 {[%emt 0:02:31]} 40. Bxa6 {[%emt 0:00:00]} bxa6 {[%emt 0:00:00]} 41. Qxa6 {[%emt 0:01:24]} Na7 {[%emt 0:00:56]} 42. b5 {[%emt 0:03:54]} Nxb5 {[%emt 0:01:40]} 43. Qxb5 {[%emt 0:00:28]} Qa8 {[%emt 0:00:09]} 44. Qc6 {[%emt 0:03:02]} Qa1 {[%emt 0:01:01]} 45. Rc1 {[%emt 0:00:40]} Qa3 {[%emt 0:00:28]} 46. Nf2 {[%emt 0:03:13]} Be8 {[%emt 0:01:04]} 47. Qc3 {[%emt 0:00:05]} Qa7 {[%emt 0:00:41]} 48. Kg2 {[%emt 0:00:26]} Rb7 {[%emt 0:03:16]} 0-1